[Event "77th Armenian Women Championship 2022"]
[Site "Yerevan"]
[Date "2022.01.15"]
[Round "4.1"]
[White "Khachatryan, Anna"]
[Black "Yedigaryan, Asya"]
[Result "1-0"]
[ECO "C11"]
[WhiteElo "2134"]
[BlackElo "2022"]
[Annotator "ChessBase"]
[PlyCount "43"]
[EventDate "2022.01.12"]
[EventType "tourn"]
[EventCountry "ARM"]
[SourceTitle "playchess.com"]
[Source "ChessBase"]
[SourceQuality "1"]
[TimeControl "40/5400+30:1800+30"]

1. e4 {[%emt 0:04:06]} e6 {[%emt 0:00:20]} 2. d4 {[%emt 0:00:10]} d5 {[%emt 0:00:06]} 3. Nc3 {[%emt 0:00:05]} Nf6 {[%emt 0:00:05]} 4. Bg5 {[%emt 0:00:04]} dxe4 {[%emt 0:00:10]} 5. Nxe4 {[%emt 0:02:41]} Be7 {[%emt 0:00:04]} 6. Bxf6 {[%emt 0:02:21]} gxf6 {[%emt 0:00:08]} 7. Nf3 {[%emt 0:00:40]} f5 {[%emt 0:00:15]} 8. Ng3 {[%emt 0:01:05]} a6 {[%emt 0:06:56]} 9. Bc4 {[%emt 0:09:23]} b5 {[%emt 0:01:02]} 10. Bb3 {[%emt 0:00:03]} Qd6 {[%emt 0:13:34]} 11. Qe2 {[%emt 0:20:26]} c5 {[%emt 0:05:33]} 12. dxc5 {[%emt 0:00:12]} Qxc5 {[%emt 0:00:04]} 13. O-O-O {[%emt 0:00:17]} Nc6 {[%emt 0:02:54]} 14. h4 {[%emt 0:08:10]} h6 {[%emt 0:09:21]} 15. Nh5 {[%emt 0:14:45]} Rg8 {[%emt 0:01:35]} 16. Qd2 {[%emt 0:06:22]} Rxg2 {[%emt 0:05:40]} 17. Qxh6 {[%emt 0:00:15]} Bf8 {[%emt 0:03:40]} 18. Qf6 {[%emt 0:07:45]} Rg6 {[%emt 0:16:55]} 19. Qh8 {[%emt 0:00:05]} Qxf2 {[%emt 0:00:08]} 20. Ng5 {[%emt 0:02:57]} Qe3+ {[%emt 0:00:07]} 21. Kb1 {[%emt 0:00:01]} Qe5 {[%emt 0:00:24]} 22. Rd8+ {[%emt 0:01:15]} 1-0

[Event "77th Armenian Women Championship 2022"]
[Site "Yerevan"]
[Date "2022.01.15"]
[Round "4.2"]
[White "Hakobyan, Astghik"]
[Black "Gevorgyan, Maria"]
[Result "0-1"]
[ECO "B34"]
[WhiteElo "2053"]
[BlackElo "2218"]
[Annotator "ChessBase"]
[PlyCount "90"]
[EventDate "2022.01.12"]
[EventType "tourn"]
[EventCountry "ARM"]
[SourceTitle "playchess.com"]
[Source "ChessBase"]
[SourceQuality "1"]
[TimeControl "40/5400+30:1800+30"]

1. e4 {[%emt 0:00:07]} c5 {[%emt 0:00:45]} 2. Nf3 {[%emt 0:00:13]} Nc6 {[%emt 0:00:07]} 3. d4 {[%emt 0:00:14]} cxd4 {[%emt 0:00:06]} 4. Nxd4 {[%emt 0:00:04]} Nf6 {[%emt 0:00:07]} 5. Nc3 {[%emt 0:00:17]} e5 {[%emt 0:00:05]} 6. Ndb5 {[%emt 0:00:23]} d6 {[%emt 0:00:06]} 7. a4 {[%emt 0:01:39]} a6 {[%emt 0:00:22]} 8. Na3 {[%emt 0:00:10]} Be6 {[%emt 0:00:52]} 9. Bg5 {[%emt 0:01:31]} Qb6 {[%emt 0:02:15]} 10. Rb1 {[%emt 0:19:00]} d5 {[%emt 0:16:57]} 11. Bxf6 {[%emt 0:39:34]} d4 {[%emt 0:10:40]} 12. Nd5 {[%emt 0:05:49]} Bxd5 {[%emt 0:03:16]} 13. exd5 {[%emt 0:01:10]} Qa5+ {[%emt 0:12:50]} 14. c3 {[%emt 0:05:42]} Qxd5 {[%emt 0:10:35]} 15. Bh4 {[%emt 0:03:21]} Bxa3 {[%emt 0:04:06]} 16. bxa3 {[%emt 0:01:11]} Qe4+ {[%emt 0:00:05]} 17. Be2 {[%emt 0:00:04]} dxc3 {[%emt 0:06:43]} 18. Rxb7 {[%emt 0:04:31]} O-O {[%emt 0:08:27]} 19. Qd3 {[%emt 0:10:46]} Qxh4 {[%emt 0:00:43]} 20. Rc7 {[%emt 0:03:39]} Qxa4 {[%emt 0:04:30]} 21. Qxc3 {[%emt 0:00:36]} Nd4 {[%emt 0:00:33]} 22. Bd1 {[%emt 0:00:48]} Qe8 {[%emt 0:02:04]} 23. a4 {[%emt 0:00:23]} Rb8 {[%emt 0:02:12]} 24. O-O {[%emt 0:00:37]} Rb1 {[%emt 0:02:28]} 25. Qc4 {[%emt 0:00:31]} Qd8 {[%emt 0:00:29]} 26. Bh5 {[%emt 0:00:37]} Rxf1+ {[%emt 0:00:10]} 27. Kxf1 {[%emt 0:00:01]} g6 {[%emt 0:00:18]} 28. Bg4 {[%emt 0:00:08]} Qg5 {[%emt 0:01:54]} 29. h3 {[%emt 0:01:00]} h5 {[%emt 0:00:57]} 30. Be2 {[%emt 0:00:47]} Kg7 {[%emt 0:02:31]} 31. Qxa6 {[%emt 0:00:32]} Rb8 {[%emt 0:00:44]} 32. Qd3 {[%emt 0:00:30]} Rb2 {[%emt 0:01:49]} 33. Bf3 {[%emt 0:00:30]} Qf4 {[%emt 0:00:24]} 34. Kg1 {[%emt 0:00:30]} Nxf3+ {[%emt 0:03:20]} 35. gxf3 {[%emt 0:00:12]} Qxa4 {[%emt 0:02:05]} 36. Qd5 {[%emt 0:00:49]} Rb1+ {[%emt 0:00:11]} 37. Kg2 {[%emt 0:00:08]} Qf4 {[%emt 0:00:15]} 38. h4 {[%emt 0:00:30]} Re1 {[%emt 0:01:22]} 39. Rc4 {[%emt 0:00:47]} Qf5 {[%emt 0:00:22]} 40. Qd2 {[%emt 0:00:00]} Qb1 {[%emt 0:00:00]} 41. f4 {[%emt 0:02:48]} e4 {[%emt 0:02:49]} 42. f5 {[%emt 0:01:30]} Rg1+ {[%emt 0:02:13]} 43. Kh2 {[%emt 0:00:11]} Qf1 {[%emt 0:02:20]} 44. Qd4+ {[%emt 0:03:50]} Kh7 {[%emt 0:00:11]} 45. fxg6+ {[%emt 0:00:12]} Rxg6 {[%emt 0:00:05]} 0-1

[Event "77th Armenian Women Championship 2022"]
[Site "Yerevan"]
[Date "2022.01.16"]
[Round "5.1"]
[White "Yedigaryan, Asya"]
[Black "Gasparian, Narine"]
[Result "1/2-1/2"]
[ECO "B52"]
[WhiteElo "2022"]
[BlackElo "2004"]
[Annotator "NA"]
[PlyCount "92"]
[EventDate "2022.01.12"]
[EventType "tourn"]
[EventCountry "ARM"]
[SourceTitle "playchess.com"]
[Source "ChessBase"]
[SourceQuality "1"]
[TimeControl "40/5400+30:1800+30"]

1. e4 {[%emt 0:00:04]} c5 {[%emt 0:00:06]} 2. Nf3 {[%emt 0:00:07]} d6 {[%emt 0:00:13]} 3. Bb5+ {[%emt 0:00:06]} Bd7 {[%emt 0:00:11]} 4. Bxd7+ {[%emt 0:00:06]} Qxd7 {[%emt 0:00:16]} 5. c4 {[%emt 0:00:09]} Nf6 {[%emt 0:00:08]} 6. Nc3 {[%emt 0:00:19]} Nc6 {[%emt 0:00:05]} 7. d4 {[%emt 0:02:54]} cxd4 {[%emt 0:00:09]} 8. Nxd4 {[%emt 0:00:04]} g6 {[%emt 0:00:36]} 9. f3 {[%emt 0:00:09]} Bg7 {[%emt 0:00:05]} 10. Be3 {[%emt 0:00:04]} O-O {[%emt 0:01:00]} 11. O-O {[%emt 0:00:05]} Rac8 {[%emt 0:03:51]} 12. b3 {[%emt 0:00:46]} Nh5 {[%emt 0:00:51]} 13. Qd2 {[%emt 0:11:21]} f5 {[%emt 0:02:21]} 14. Rad1 {[%emt 0:08:20]} Rf7 {[%emt 0:09:44]} 15. Rfe1 {[%emt 0:21:56]} Ne5 {[%emt 0:07:51]} 16. exf5 {[%emt 0:06:21]} gxf5 {[%emt 0:00:16]} 17. Bg5 {[%emt 0:00:31]} Ng6 {[%emt 0:05:33]} 18. Bh6 {[%emt 0:19:45]} Be5 {[%emt 0:11:05]} 19. Nde2 {[%emt 0:11:31]} Qc6 {[%emt 0:08:01]} 20. f4 {[%emt 0:05:57]} Bg7 {[%emt 0:02:37]} 21. Bxg7 {[%emt 0:00:35]} Rxg7 {[%emt 0:01:58]} 22. Nd4 {[%emt 0:01:22]} Qd7 {[%emt 0:08:10]} 23. Ne6 {[%emt 0:00:44]} Rf7 {[%emt 0:00:20]} 24. Nd5 {[%emt 0:00:59]} b5 {[%emt 0:04:02]} 25. c5 {[%emt 0:03:10]} dxc5 {[%emt 0:05:32]} 26. Qe2 {[%emt 0:00:14]} Ng7 {[%emt 0:07:43]} 27. Nf6+ {[%emt 0:02:00]} exf6 {[%emt 0:00:07]} 28. Rxd7 {[%emt 0:00:03]} Rxd7 {[%emt 0:00:05]} 29. Nxg7 {[%emt 0:00:13]} Kxg7 {[%emt 0:00:37]} 30. Qxb5 {[%emt 0:00:06]} Rcc7 {[%emt 0:01:40]} 31. g3 {[%emt 0:00:51]} Ne7 {[%emt 0:00:22]} 32. Rc1 {[%emt 0:00:46]} Rd2 {[%emt 0:01:39]} 33. Qa5 {[%emt 0:01:21]} Rcd7 {[%emt 0:00:28]} 34. Re1 {[%emt 0:01:59]} ({Not} 34. Rxc5 Re2 35. Kf1 (35. Rc1 Rdd2 $11) 35... Rdd2 $11) 34... Nc6 {[%emt 0:02:48]} 35. Qxc5 {[%emt 0:00:15]} Nd4 {[%emt 0:00:25]} 36. Rf1 {[%emt 0:01:41]} Rc2 {[%emt 0:04:41]} 37. Qb4 {[%emt 0:00:38]} Nc6 {[%emt 0:01:00]} 38. Qb5 {[%emt 0:01:21]} Rdd2 {[%emt 0:00:42]} 39. Ra1 {[%emt 0:00:23]} Nd4 {[%emt 0:07:24]} 40. Qb7+ {[%emt 0:00:00]} Kg6 {[%emt 0:00:00]} 41. Qa8 {[%emt 0:05:32]} (41. Qxa7 {gets mated.} Rg2+ 42. Kf1 Rcf2+ 43. Ke1 Nf3+ 44. Kd1 Rg1#) 41... Rxh2 {[%emt 0:16:39]} 42. Rf1 $11 {[%emt 0:03:24]} Nc6 {[%emt 0:09:05]} 43. Qg8+ {[%emt 0:00:50]} Kh6 {[%emt 0:00:07]} 44. Qf8+ {[%emt 0:00:05]} Kg6 {[%emt 0:00:25]} 45. Qg8+ {[%emt 0:00:05]} Kh6 {[%emt 0:00:05]} 46. Qf8+ {[%emt 0:00:02]} Kg6 {[%emt 0:00:06]} 1/2-1/2

[Event "77th Armenian Women Championship 2022"]
[Site "Yerevan"]
[Date "2022.01.16"]
[Round "5.2"]
[White "Mkrtchyan, Mariam"]
[Black "Khachatryan, Veronika"]
[Result "1-0"]
[ECO "D74"]
[WhiteElo "2262"]
[BlackElo "2007"]
[Annotator "ChessBase"]
[PlyCount "63"]
[EventDate "2022.01.12"]
[EventType "tourn"]
[EventCountry "ARM"]
[SourceTitle "playchess.com"]
[Source "ChessBase"]
[SourceQuality "1"]
[TimeControl "40/5400+30:1800+30"]

1. d4 Nf6 2. Nf3 g6 3. c4 Bg7 4. g3 O-O 5. Bg2 {[%emt 0:03:28]} d5 {[%emt 0:04:59]} 6. cxd5 {[%emt 0:00:15]} Nxd5 {[%emt 0:00:39]} 7. O-O {[%emt 0:00:07]} Nc6 {[%emt 0:04:00]} 8. e4 {[%emt 0:01:53]} Nb6 {[%emt 0:00:10]} 9. d5 {[%emt 0:00:11]} Na5 {[%emt 0:04:38]} 10. Qe1 {[%emt 0:00:39]} Nac4 {[%emt 0:04:11]} 11. Nc3 {[%emt 0:00:11]} e6 {[%emt 0:08:32]} 12. Bg5 {[%emt 0:00:16]} Qe8 {[%emt 0:23:22]} 13. b3 {[%emt 0:13:34]} Nd6 {[%emt 0:06:21]} 14. e5 {[%emt 0:08:20]} exd5 {[%emt 0:02:09]} 15. exd6 {[%emt 0:05:59]} Qxe1 {[%emt 0:00:05]} 16. Raxe1 {[%emt 0:00:03]} Bxc3 {[%emt 0:00:06]} 17. Rc1 {[%emt 0:00:05]} d4 {[%emt 0:08:47]} 18. dxc7 {[%emt 0:00:25]} Bf5 {[%emt 0:03:12]} 19. Bf6 {[%emt 0:10:43]} Bd3 {[%emt 0:20:23]} 20. Bxd4 {[%emt 0:21:19]} Bxf1 {[%emt 0:01:01]} 21. Kxf1 {[%emt 0:00:04]} Ba5 {[%emt 0:03:13]} 22. Ne5 {[%emt 0:01:06]} f6 {[%emt 0:00:42]} 23. Bxb6 {[%emt 0:01:50]} Bxb6 {[%emt 0:00:20]} 24. Nd7 {[%emt 0:00:10]} Rac8 {[%emt 0:02:37]} 25. Nxb6 {[%emt 0:00:11]} axb6 {[%emt 0:00:07]} 26. Bxb7 {[%emt 0:00:05]} Kf7 {[%emt 0:00:22]} 27. Bxc8 {[%emt 0:00:52]} Rxc8 {[%emt 0:00:01]} 28. a4 {[%emt 0:00:08]} Ke7 {[%emt 0:00:12]} 29. Rc6 {[%emt 0:01:08]} f5 {[%emt 0:00:24]} 30. b4 {[%emt 0:00:05]} Kd7 {[%emt 0:00:20]} 31. Rxb6 {[%emt 0:00:08]} Rxc7 {[%emt 0:00:34]} 32. a5 {[%emt 0:00:13]} 1-0

[Event "77th Armenian Women Championship 2022"]
[Site "Yerevan"]
[Date "2022.01.16"]
[Round "5.3"]
[White "Arakelyan, Nare"]
[Black "Gaboyan, Susanna"]
[Result "0-1"]
[ECO "C41"]
[WhiteElo "1912"]
[BlackElo "2254"]
[Annotator "ChessBase"]
[PlyCount "60"]
[EventDate "2022.01.12"]
[EventType "tourn"]
[EventCountry "ARM"]
[SourceTitle "playchess.com"]
[Source "ChessBase"]
[SourceQuality "1"]
[TimeControl "40/5400+30:1800+30"]

1. e4 {[%emt 0:00:35]} d6 {[%emt 0:00:11]} 2. d4 {[%emt 0:00:01]} Nf6 {[%emt 0:00:10]} 3. Nc3 {[%emt 0:00:19]} e5 {[%emt 0:00:06]} 4. Nf3 {[%emt 0:00:57]} Nbd7 {[%emt 0:00:24]} 5. Bc4 {[%emt 0:02:14]} Be7 {[%emt 0:00:08]} 6. O-O {[%emt 0:00:46]} O-O {[%emt 0:00:07]} 7. Qe2 {[%emt 0:00:38]} c6 {[%emt 0:00:17]} 8. a4 {[%emt 0:00:05]} exd4 {[%emt 0:04:28]} 9. Nxd4 {[%emt 0:00:36]} Re8 {[%emt 0:00:23]} 10. f3 {[%emt 0:12:51]} d5 {[%emt 0:08:05]} 11. Ba2 {[%emt 0:09:36]} Bc5 {[%emt 0:05:15]} 12. Be3 {[%emt 0:01:12]} Qe7 {[%emt 0:25:33]} 13. Kh1 {[%emt 0:22:04]} dxe4 {[%emt 0:03:10]} 14. Nf5 {[%emt 0:05:28]} Qe5 {[%emt 0:04:00]} 15. fxe4 {[%emt 0:02:35]} Bxe3 {[%emt 0:13:28]} 16. Qxe3 {[%emt 0:00:18]} Nf8 {[%emt 0:00:08]} 17. Qg5 {[%emt 0:03:10]} Ng6 {[%emt 0:03:30]} 18. h4 {[%emt 0:07:32]} Bxf5 {[%emt 0:00:07]} 19. Rxf5 {[%emt 0:00:42]} Qe7 {[%emt 0:11:09]} 20. h5 {[%emt 0:02:02]} Nf8 {[%emt 0:00:51]} 21. Raf1 {[%emt 0:03:57]} h6 {[%emt 0:01:17]} 22. Qg3 {[%emt 0:01:35]} N8h7 {[%emt 0:09:58]} 23. e5 {[%emt 0:04:46]} Qc7 {[%emt 0:00:02]} 24. Rxf6 {[%emt 0:06:00]} Nxf6 {[%emt 0:01:11]} 25. Rxf6 {[%emt 0:00:03]} Re7 {[%emt 0:03:03]} 26. Ne4 {[%emt 0:06:31]} Kh8 {[%emt 0:05:05]} 27. Rf5 {[%emt 0:01:07]} Rd8 {[%emt 0:00:54]} 28. Nd6 {[%emt 0:00:40]} f6 {[%emt 0:00:31]} 29. exf6 {[%emt 0:02:52]} Red7 {[%emt 0:00:46]} 30. fxg7+ {[%emt 0:03:35]} Rxg7 {[%emt 0:00:02]} 0-1

[Event "77th Armenian Women Championship 2022"]
[Site "Yerevan"]
[Date "2022.01.16"]
[Round "5.4"]
[White "Gevorgyan, Maria"]
[Black "Khachatryan, Anna"]
[Result "1-0"]
[ECO "D31"]
[WhiteElo "2218"]
[BlackElo "2134"]
[Annotator "ChessBase"]
[PlyCount "85"]
[EventDate "2022.01.12"]
[EventType "tourn"]
[EventCountry "ARM"]
[SourceTitle "playchess.com"]
[Source "ChessBase"]
[SourceQuality "1"]
[TimeControl "40/5400+30:1800+30"]

1. d4 {[%emt 0:00:03]} d5 {[%emt 0:07:34]} 2. c4 {[%emt 0:00:11]} e6 {[%emt 0:00:02]} 3. Nc3 {[%emt 0:00:05]} c6 {[%emt 0:00:04]} 4. e3 {[%emt 0:00:07]} f5 {[%emt 0:00:23]} 5. Nf3 {[%emt 0:01:16]} Nf6 {[%emt 0:00:24]} 6. Bd3 {[%emt 0:00:07]} Bd6 {[%emt 0:00:25]} 7. O-O {[%emt 0:00:25]} O-O {[%emt 0:00:17]} 8. b3 {[%emt 0:00:23]} Nbd7 {[%emt 0:01:15]} 9. a4 {[%emt 0:02:47]} Ne4 {[%emt 0:02:56]} 10. Ne2 {[%emt 0:03:26]} Qe7 {[%emt 0:00:37]} 11. Ne1 {[%emt 0:01:58]} Qh4 {[%emt 0:18:42]} 12. f4 {[%emt 0:10:01]} Qe7 {[%emt 0:05:43]} 13. Nf3 {[%emt 0:00:12]} h6 {[%emt 0:10:57]} 14. Ne5 {[%emt 0:02:51]} Nxe5 {[%emt 0:04:41]} 15. fxe5 {[%emt 0:05:44]} Bb4 {[%emt 0:00:03]} 16. Bxe4 {[%emt 0:15:16]} fxe4 {[%emt 0:03:07]} 17. Nf4 {[%emt 0:02:17]} b6 {[%emt 0:11:44]} 18. Ra2 {[%emt 0:02:11]} Ba6 {[%emt 0:04:25]} 19. Raf2 {[%emt 0:03:46]} Rfe8 {[%emt 0:01:14]} 20. Qe2 {[%emt 0:09:40]} Kh7 {[%emt 0:06:50]} 21. g3 {[%emt 0:03:32]} Rac8 {[%emt 0:10:20]} 22. h4 {[%emt 0:08:01]} dxc4 {[%emt 0:00:31]} 23. bxc4 {[%emt 0:01:12]} Rc7 {[%emt 0:00:21]} 24. Qc2 {[%emt 0:07:41]} Kg8 {[%emt 0:00:56]} 25. Ng6 {[%emt 0:00:18]} Qd8 {[%emt 0:03:09]} 26. Rf4 {[%emt 0:00:27]} c5 {[%emt 0:01:57]} 27. Rxe4 {[%emt 0:07:06]} cxd4 {[%emt 0:00:23]} 28. Rxd4 {[%emt 0:00:02]} Qc8 {[%emt 0:00:28]} 29. Rff4 {[%emt 0:03:57]} Bc5 {[%emt 0:00:03]} 30. Rd1 {[%emt 0:02:42]} Rd7 {[%emt 0:01:30]} 31. Rdf1 {[%emt 0:00:58]} Bb7 {[%emt 0:00:21]} 32. Kh2 {[%emt 0:00:37]} Qc6 {[%emt 0:01:23]} 33. e4 {[%emt 0:00:29]} a5 {[%emt 0:01:07]} 34. h5 {[%emt 0:00:17]} Bb4 {[%emt 0:00:43]} 35. Qf2 {[%emt 0:00:26]} Rdd8 {[%emt 0:00:29]} 36. Rf7 {[%emt 0:00:13]} Rd7 {[%emt 0:01:37]} 37. Rf8+ {[%emt 0:00:11]} Bxf8 {[%emt 0:00:08]} 38. Qxf8+ {[%emt 0:01:12]} Kh7 {[%emt 0:00:04]} 39. Qxe8 {[%emt 0:00:06]} Rd2+ {[%emt 0:00:03]} 40. Bxd2 {[%emt 0:00:00]} Qxe8 {[%emt 0:00:00]} 41. Rf8 {[%emt 0:00:09]} Bc6 {[%emt 0:00:33]} 42. Rxe8 {[%emt 0:00:23]} Bxe8 {[%emt 0:00:03]} 43. Be3 {[%emt 0:00:11]} 1-0

[Event "77th Armenian Women Championship 2022"]
[Site "Yerevan"]
[Date "2022.01.16"]
[Round "5.5"]
[White "Avetisyan, Mariam"]
[Black "Hakobyan, Astghik"]
[Result "1-0"]
[ECO "B15"]
[WhiteElo "2012"]
[BlackElo "2053"]
[Annotator "NA"]
[PlyCount "75"]
[EventDate "2022.01.12"]
[EventType "tourn"]
[EventCountry "ARM"]
[SourceTitle "playchess.com"]
[Source "ChessBase"]
[SourceQuality "1"]
[TimeControl "40/5400+30:1800+30"]

1. e4 {[%emt 0:00:04]} c6 {[%emt 0:00:32]} 2. d4 {[%emt 0:00:04]} d5 {[%emt 0:00:07]} 3. Nc3 {[%emt 0:00:04]} dxe4 {[%emt 0:00:14]} 4. Nxe4 {[%emt 0:00:03]} Nf6 {[%emt 0:00:18]} 5. Nxf6+ {[%emt 0:00:03]} exf6 {[%emt 0:00:15]} 6. c3 {[%emt 0:00:06]} Bd6 {[%emt 0:00:13]} 7. Bd3 {[%emt 0:00:04]} O-O {[%emt 0:00:55]} 8. Qc2 {[%emt 0:00:07]} Re8+ {[%emt 0:00:11]} 9. Ne2 {[%emt 0:00:15]} h5 {[%emt 0:00:19]} 10. Be3 {[%emt 0:00:19]} Nd7 {[%emt 0:00:20]} 11. O-O-O {[%emt 0:00:12]} Nf8 {[%emt 0:00:19]} 12. c4 {[%emt 0:02:01]} Be6 {[%emt 0:01:28]} 13. Kb1 {[%emt 0:00:55]} Rc8 {[%emt 0:00:41]} 14. a3 {[%emt 0:00:13]} b5 {[%emt 0:06:07]} 15. c5 {[%emt 0:00:45]} Bc7 {[%emt 0:00:24]} 16. Nc3 {[%emt 0:00:32]} Rb8 {[%emt 0:13:17]} 17. Be4 {[%emt 0:06:23]} b4 {[%emt 0:19:19]} 18. axb4 {[%emt 0:04:30]} Rxb4 {[%emt 0:02:06]} 19. Bxc6 {[%emt 0:12:03]} Bb3 {[%emt 0:01:32]} 20. Qf5 {[%emt 0:01:04]} Re6 {[%emt 0:06:21]} 21. Bd5 {[%emt 0:23:09]} g6 {[%emt 0:06:08]} 22. Qf3 {[%emt 0:00:21]} Bxd1 {[%emt 0:11:39]} 23. Rxd1 {[%emt 0:00:25]} Ra6 {[%emt 0:01:35]} 24. Bc1 {[%emt 0:03:58]} Ne6 {[%emt 0:04:33]} 25. Bxe6 {[%emt 0:02:03]} Rxe6 {[%emt 0:04:22]} 26. d5 {[%emt 0:00:40]} Ra6 {[%emt 0:02:01]} 27. Qe2 Ra3 $18 {[%emt 0:03:43]} 28. Nb5 {[%emt 0:21:23]} Ra5 {[%emt 0:02:29]} 29. d6 {[%emt 0:05:43]} Rbxb5 30. dxc7 {[%emt 0:00:09]} Qxc7 {[%emt 0:13:17]} 31. Qe8+ {[%emt 0:00:50]} Kg7 {[%emt 0:00:28]} 32. Rd8 {[%emt 0:02:40]} Qxd8 {[%emt 0:00:43]} 33. Qxd8 {[%emt 0:00:05]} Rxc5 {[%emt 0:00:28]} 34. h4 {[%emt 0:00:43]} g5 {[%emt 0:00:32]} 35. hxg5 {[%emt 0:00:04]} fxg5 {[%emt 0:00:24]} 36. b4 {[%emt 0:00:09]} Rab5 {[%emt 0:00:34]} 37. Bb2+ {[%emt 0:00:07]} Re5 {[%emt 0:00:35]} 38. Qxg5+ {[%emt 0:00:07]} 1-0

[Event "77th Armenian Women Championship 2022"]
[Site "Yerevan"]
[Date "2022.01.19"]
[Round "8.2"]
[White "Khachatryan, Veronika"]
[Black "Avetisyan, Mariam"]
[Result "1-0"]
[ECO "E10"]
[WhiteElo "2007"]
[BlackElo "2012"]
[Annotator "ChessBase"]
[PlyCount "79"]
[EventDate "2022.01.12"]
[EventType "tourn"]
[EventCountry "ARM"]
[SourceTitle "playchess.com"]
[Source "ChessBase"]
[SourceQuality "1"]
[TimeControl "40/5400+30:1800+30"]

1. d4 {[%emt 0:13:14]} Nf6 {[%emt 0:01:03]} 2. c4 {[%emt 0:01:32]} e6 {[%emt 0:00:14]} 3. Nf3 {[%emt 0:00:08]} c5 {[%emt 0:01:42]} 4. d5 {[%emt 0:00:28]} b5 {[%emt 0:00:32]} 5. dxe6 {[%emt 0:00:09]} fxe6 {[%emt 0:00:04]} 6. cxb5 {[%emt 0:00:04]} d5 {[%emt 0:00:36]} 7. Nc3 {[%emt 0:02:57]} Bb7 {[%emt 0:11:29]} 8. g3 {[%emt 0:11:38]} Nbd7 {[%emt 0:02:43]} 9. Bh3 {[%emt 0:03:13]} d4 {[%emt 0:06:16]} 10. Na4 {[%emt 0:04:06]} e5 {[%emt 0:03:36]} 11. O-O {[%emt 0:10:24]} Bd6 {[%emt 0:11:20]} 12. Ng5 {[%emt 0:01:42]} Qe7 {[%emt 0:06:04]} 13. e3 {[%emt 0:00:39]} h6 {[%emt 0:03:30]} 14. Nf3 {[%emt 0:05:45]} O-O {[%emt 0:05:19]} 15. exd4 {[%emt 0:00:05]} cxd4 {[%emt 0:01:59]} 16. Nh4 {[%emt 0:00:41]} Rf7 {[%emt 0:04:37]} 17. Nf5 {[%emt 0:03:43]} Qf8 {[%emt 0:00:17]} 18. b3 {[%emt 0:00:39]} Rd8 {[%emt 0:16:48]} 19. Nb2 {[%emt 0:03:12]} Nb6 {[%emt 0:01:42]} 20. a4 {[%emt 0:02:28]} Bb4 {[%emt 0:07:21]} 21. Nd3 {[%emt 0:09:35]} Bd6 {[%emt 0:08:51]} 22. Re1 {[%emt 0:12:36]} Nbd7 {[%emt 0:01:34]} 23. Nb2 {[%emt 0:04:41]} Bb4 {[%emt 0:00:50]} 24. Rf1 {[%emt 0:01:53]} Ne4 {[%emt 0:01:44]} 25. Qg4 {[%emt 0:01:35]} Kh7 {[%emt 0:00:36]} 26. Nd3 {[%emt 0:01:25]} Ndf6 {[%emt 0:01:06]} 27. Qh4 {[%emt 0:00:53]} Nc3 {[%emt 0:01:23]} 28. Re1 {[%emt 0:01:34]} Bd6 {[%emt 0:00:33]} 29. Nxh6 {[%emt 0:00:57]} gxh6 {[%emt 0:00:27]} 30. Bf5+ {[%emt 0:00:05]} Kg8 {[%emt 0:00:30]} 31. Bxh6 {[%emt 0:00:46]} Qe7 {[%emt 0:00:11]} 32. Nf4 {[%emt 0:00:52]} exf4 {[%emt 0:00:48]} 33. Rxe7 {[%emt 0:00:28]} Rxe7 {[%emt 0:00:42]} 34. Qxf6 {[%emt 0:00:38]} Ne2+ {[%emt 0:00:30]} 35. Kf1 {[%emt 0:00:04]} d3 {[%emt 0:00:29]} 36. Qg5+ {[%emt 0:01:10]} Kh8 {[%emt 0:00:18]} 37. Bg7+ {[%emt 0:00:08]} Kg8 {[%emt 0:00:14]} 38. Bf6+ {[%emt 0:00:07]} Kf8 {[%emt 0:00:06]} 39. Qh6+ {[%emt 0:00:20]} Ke8 {[%emt 0:00:09]} 40. Qh8+ {[%emt 0:00:00]} 1-0

[Event "77th Armenian Women Championship 2022"]
[Site "Yerevan"]
[Date "2022.01.19"]
[Round "8.3"]
[White "Mkrtchyan, Mariam"]
[Black "Yedigaryan, Asya"]
[Result "1/2-1/2"]
[ECO "A40"]
[WhiteElo "2262"]
[BlackElo "2022"]
[Annotator "ChessBase"]
[PlyCount "61"]
[EventDate "2022.01.12"]
[EventType "tourn"]
[EventCountry "ARM"]
[SourceTitle "playchess.com"]
[Source "ChessBase"]
[SourceQuality "1"]
[TimeControl "40/5400+30:1800+30"]

1. d4 {[%emt 0:00:04]} Nf6 {[%emt 0:00:07]} 2. c4 {[%emt 0:00:06]} e6 {[%emt 0:00:12]} 3. g3 {[%emt 0:00:36]} Bb4+ {[%emt 0:01:18]} 4. Bd2 {[%emt 0:00:17]} Qe7 {[%emt 0:01:33]} 5. Bg2 {[%emt 0:00:36]} Nc6 {[%emt 0:04:25]} 6. e3 {[%emt 0:11:29]} O-O {[%emt 0:06:31]} 7. Ne2 {[%emt 0:04:42]} Bxd2+ {[%emt 0:07:26]} 8. Nxd2 {[%emt 0:01:33]} d6 {[%emt 0:00:11]} 9. O-O {[%emt 0:02:26]} e5 {[%emt 0:00:32]} 10. d5 {[%emt 0:02:03]} Nd8 {[%emt 0:06:06]} 11. Nc3 {[%emt 0:00:29]} Ne8 {[%emt 0:04:40]} 12. e4 {[%emt 0:02:00]} f5 {[%emt 0:00:25]} 13. exf5 {[%emt 0:08:19]} Bxf5 {[%emt 0:00:31]} 14. Qe2 {[%emt 0:00:05]} Qd7 {[%emt 0:07:30]} 15. b4 {[%emt 0:03:13]} Nf6 {[%emt 0:09:20]} 16. c5 {[%emt 0:00:22]} Bh3 {[%emt 0:03:16]} 17. Qc4 {[%emt 0:14:48]} Bxg2 {[%emt 0:03:13]} 18. Kxg2 {[%emt 0:00:02]} Nf7 {[%emt 0:01:44]} 19. Nde4 {[%emt 0:00:50]} Kh8 {[%emt 0:07:34]} 20. c6 {[%emt 0:08:27]} bxc6 {[%emt 0:11:37]} 21. dxc6 {[%emt 0:00:54]} Qf5 {[%emt 0:00:22]} 22. Nxf6 {[%emt 0:03:47]} gxf6 {[%emt 0:00:14]} 23. f4 {[%emt 0:02:03]} d5 {[%emt 0:07:53]} 24. Nxd5 {[%emt 0:02:08]} Nd6 {[%emt 0:00:04]} 25. Ne3 {[%emt 0:08:19]} Qh5 {[%emt 0:01:38]} 26. Qc2 {[%emt 0:02:46]} exf4 {[%emt 0:03:20]} 27. Rxf4 {[%emt 0:00:35]} Rae8 {[%emt 0:00:06]} 28. Rh4 {[%emt 0:09:22]} Qf7 {[%emt 0:00:06]} 29. Ng4 {[%emt 0:02:06]} Qd5+ {[%emt 0:02:38]} 30. Kh3 {[%emt 0:00:22]} Ne4 {[%emt 0:00:16]} 31. Rh6 {[%emt 0:02:49]} 1/2-1/2